[Event "European Rapid Championship 2021"]
[Site "Katowice"]
[Date "2021.12.18"]
[Round "5.19"]
[White "Malicka, Maria"]
[Black "Paszewski, Mateusz"]
[Result "1-0"]
[ECO "B15"]
[WhiteElo "1947"]
[BlackElo "2202"]
[Annotator "NA"]
[PlyCount "121"]
[EventDate "2021.12.18"]
[EventType "swiss"]
[EventCountry "POL"]
[SourceTitle "playchess.com"]
[Source "ChessBase"]
[SourceQuality "1"]
[TimeControl "900+10"]

1. e4 {[%emt 0:00:01]} c6 {[%emt 0:00:08]} 2. d4 {[%emt 0:00:04]} d5 {[%emt 0:
00:01]} 3. Nc3 {[%emt 0:00:02]} dxe4 {[%emt 0:00:01]} 4. Nxe4 {[%emt 0:00:04]}
Nf6 {[%emt 0:00:01]} 5. Nxf6+ {[%emt 0:00:02]} exf6 {[%emt 0:00:02]} 6. c3 {
[%emt 0:00:03]} Bd6 {[%emt 0:00:01]} 7. Bd3 {[%emt 0:00:04]} O-O {[%emt 0:00:
02]} 8. Qc2 {[%emt 0:00:01]} Re8+ {[%emt 0:00:01]} 9. Ne2 {[%emt 0:00:03]} h5 {
[%emt 0:00:01]} 10. O-O {[%emt 0:00:16]} h4 {[%emt 0:00:14]} 11. Nf4 {[%emt 0:
00:06]} Nd7 {[%emt 0:00:31]} 12. Qd1 {[%emt 0:00:07]} Nf8 {[%emt 0:00:01]} 13.
Qh5 {[%emt 0:00:11]} Qc7 {[%emt 0:00:02]} 14. g3 {[%emt 0:00:07]} Qd7 {[%emt 0:
00:01]} 15. Bd2 {[%emt 0:00:58]} Bxf4 {[%emt 0:00:01]} 16. Bxf4 {[%emt 0:00:10]
} g5 {[%emt 0:00:04]} 17. Bd2 {[%emt 0:02:03]} Qh3 {[%emt 0:00:09]} 18. Qf3 {
[%emt 0:02:52]} Kg7 {[%emt 0:04:06]} 19. Rfe1 {[%emt 0:00:07]} Bg4 {[%emt 0:03:
21]} 20. Qg2 {[%emt 0:01:03]} Qxg2+ {[%emt 0:01:54]} 21. Kxg2 {[%emt 0:00:01]}
h3+ {[%emt 0:00:02]} 22. Kf1 {[%emt 0:01:15]} Rad8 {[%emt 0:01:52]} 23. Rxe8 {
[%emt 0:01:42]} Rxe8 {[%emt 0:00:01]} 24. Re1 {[%emt 0:00:01]} Rxe1+ {[%emt 0:
00:14]} 25. Kxe1 {[%emt 0:00:07]} Ne6 {[%emt 0:00:19]} 26. Be2 {[%emt 0:00:45]}
Bxe2 {[%emt 0:01:13]} 27. Kxe2 {[%emt 0:00:01]} Kg6 {[%emt 0:01:46]} 28. Kf3 {
[%emt 0:02:17]} f5 {[%emt 0:01:40]} 29. g4 {[%emt 0:00:01]} Nc7 {[%emt 0:01:48]
} 30. Kg3 {[%emt 0:00:24]} Nd5 {[%emt 0:00:06]} 31. Kxh3 {[%emt 0:00:29]} Nf6 {
[%emt 0:00:18]} 32. gxf5+ Kxf5 {[%emt 0:00:01]} 33. f3 {[%emt 0:01:12]} b5 {
[%emt 0:00:01]} 34. Kg3 {[%emt 0:00:16]} a5 {[%emt 0:00:04]} 35. b3 {[%emt 0:
00:14]} a4 {[%emt 0:00:03]} 36. bxa4 {[%emt 0:00:11]} bxa4 {[%emt 0:00:01]} 37.
h3 {[%emt 0:01:00]} Nd5 {[%emt 0:00:45]} 38. Kf2 {[%emt 0:00:09]} f6 {[%emt 0:
00:22]} 39. Ke2 {[%emt 0:00:03]} Kg6 {[%emt 0:00:05]} 40. c4 {[%emt 0:00:07]}
Ne7 {[%emt 0:00:03]} 41. Kd3 {[%emt 0:00:10]} f5 {[%emt 0:00:20]} 42. Bb4 {
[%emt 0:00:12]} Ng8 {[%emt 0:00:07]} 43. d5 {[%emt 0:00:06]} cxd5 {[%emt 0:00:
01]} 44. cxd5 {[%emt 0:00:01]} Kf6 {[%emt 0:00:12]} 45. Kd4 {[%emt 0:00:18]}
Nh6 {[%emt 0:00:10]} 46. Kc5 {[%emt 0:00:20]} g4 {[%emt 0:00:04]} 47. hxg4 {
[%emt 0:00:55]} fxg4 {[%emt 0:00:00]} 48. fxg4 {[%emt 0:00:01]} Nxg4 {[%emt 0:
00:01]} 49. Kb5 {[%emt 0:00:08]} Ne3 {[%emt 0:00:38]} 50. d6 {[%emt 0:00:01]}
Ke6 {[%emt 0:00:02]} 51. Kxa4 {[%emt 0:00:06]} Kd7 {[%emt 0:00:23]} 52. Kb5 {
[%emt 0:00:07]} Nf5 {[%emt 0:00:14]} 53. a4 {[%emt 0:00:12]} Ng7 {[%emt 0:00:
05]} 54. Kb6 {[%emt 0:00:47]} Ne6 {[%emt 0:00:09]} 55. a5 {[%emt 0:00:57]} Kc8
{[%emt 0:00:01]} 56. a6 {[%emt 0:00:28]} Kb8 {[%emt 0:00:01]} 57. d7 {[%emt 0:
00:26]} Nd8 {[%emt 0:00:17]} 58. Bd6+ {[%emt 0:00:12]} Ka8 {[%emt 0:00:01]} 59.
Bh2 {[%emt 0:00:05]} Nf7 {[%emt 0:00:02]} 60. Bc7 {[%emt 0:00:08]} Nd8 {
[%emt 0:00:03]} 61. Bxd8 {[%emt 0:00:02]} 1-0

[Event "European Rapid Championship 2021"]
[Site "Katowice"]
[Date "2021.12.18"]
[Round "5.20"]
[White "Kos, Pawel"]
[Black "Malczyk, Radoslaw"]
[Result "1/2-1/2"]
[ECO "A05"]
[WhiteElo "2199"]
[BlackElo "1926"]
[Annotator "NA"]
[PlyCount "174"]
[EventDate "2021.12.18"]
[EventType "swiss"]
[EventCountry "POL"]
[SourceTitle "playchess.com"]
[Source "ChessBase"]
[SourceQuality "1"]
[TimeControl "900+10"]

1. Nf3 {[%emt 0:00:02]} Nf6 {[%emt 0:00:03]} 2. g3 {[%emt 0:00:02]} g6 {
[%emt 0:00:02]} 3. Bg2 {[%emt 0:00:01]} Bg7 {[%emt 0:00:02]} 4. O-O {[%emt 0:
00:11]} O-O {[%emt 0:00:03]} 5. a3 {[%emt 0:00:06]} c5 {[%emt 0:00:13]} 6. c3 {
[%emt 0:00:09]} c4 {[%emt 0:01:01]} 7. d4 {[%emt 0:00:52]} cxd3 {[%emt 0:00:03]
} 8. exd3 {[%emt 0:00:03]} Nc6 {[%emt 0:00:19]} 9. b4 {[%emt 0:00:04]} a6 {
[%emt 0:00:24]} 10. Re1 {[%emt 0:00:32]} b5 {[%emt 0:00:34]} 11. a4 {[%emt 0:
00:32]} Bb7 {[%emt 0:00:40]} 12. Bd2 {[%emt 0:00:39]} Nd5 {[%emt 0:00:14]} 13.
Ra2 {[%emt 0:00:54]} Nb6 {[%emt 0:01:35]} 14. axb5 {[%emt 0:00:45]} axb5 {
[%emt 0:00:03]} 15. Na3 {[%emt 0:00:13]} Nd5 {[%emt 0:00:53]} 16. Qb3 {[%emt 0:
00:16]} Nc7 {[%emt 0:00:01]} 17. Bg5 {[%emt 0:00:40]} h6 {[%emt 0:00:36]} 18.
Be3 {[%emt 0:00:05]} Rb8 {[%emt 0:00:55]} 19. Bf4 {[%emt 0:00:35]} d6 {[%emt 0:
00:13]} 20. d4 {[%emt 0:00:24]} Na7 {[%emt 0:01:11]} 21. Rae2 {[%emt 0:00:27]}
e6 {[%emt 0:00:25]} 22. Qb2 {[%emt 0:01:55]} Bd5 {[%emt 0:00:33]} 23. h4 {
[%emt 0:00:38]} Nc8 {[%emt 0:00:08]} 24. Nd2 {[%emt 0:00:40]} Qd7 {[%emt 0:00:
50]} 25. Nb3 {[%emt 0:00:54]} Nb6 {[%emt 0:00:29]} 26. Na5 {[%emt 0:00:18]}
Bxg2 {[%emt 0:00:24]} 27. Kxg2 {[%emt 0:00:02]} Ncd5 {[%emt 0:00:15]} 28. Qd2 {
[%emt 0:00:41]} Kh7 {[%emt 0:00:09]} 29. h5 {[%emt 0:00:12]} Nxf4+ {[%emt 0:00:
41]} 30. Qxf4 {[%emt 0:00:06]} Nd5 {[%emt 0:00:11]} 31. hxg6+ {[%emt 0:00:23]}
fxg6 {[%emt 0:00:02]} 32. Qd2 {[%emt 0:00:02]} e5 {[%emt 0:00:46]} 33. Re4 {
[%emt 0:01:35]} exd4 {[%emt 0:00:17]} 34. cxd4 {[%emt 0:00:10]} Qf5 {[%emt 0:
00:15]} 35. Nc2 {[%emt 0:04:41]} Qf3+ {[%emt 0:00:25]} 36. Kg1 {[%emt 0:00:11]}
Rf5 {[%emt 0:01:20]} 37. Rh4 {[%emt 0:00:21]} Rbf8 {[%emt 0:00:16]} 38. Re2 {
[%emt 0:00:17]} Nc3 {[%emt 0:00:41]} 39. Re3 {[%emt 0:00:45]} Qd1+ {[%emt 0:00:
02]} 40. Qxd1 Nxd1 {[%emt 0:00:01]} 41. Rh2 {[%emt 0:00:21]} Nxe3 {[%emt 0:00:
02]} 42. Nxe3 {[%emt 0:00:01]} R5f7 {[%emt 0:00:48]} 43. Nc6 {[%emt 0:00:04]}
Ra8 {[%emt 0:00:41]} 44. d5 {[%emt 0:00:11]} Ra1+ {[%emt 0:00:18]} 45. Kg2 {
[%emt 0:00:01]} g5 {[%emt 0:00:53]} 46. Nd8 {[%emt 0:00:21]} Rfa7 {[%emt 0:00:
31]} 47. Ne6 {[%emt 0:00:02]} Kg6 {[%emt 0:00:08]} 48. g4 {[%emt 0:00:04]} Be5
{[%emt 0:00:25]} 49. Rh3 {[%emt 0:00:01]} R7a4 {[%emt 0:00:35]} 50. Nf5 {
[%emt 0:00:27]} Rxb4 {[%emt 0:00:24]} 51. Rxh6+ {[%emt 0:00:04]} Kf7 {[%emt 0:
00:01]} 52. Rh7+ {[%emt 0:00:10]} Kg8 {[%emt 0:00:14]} 53. Rb7 {[%emt 0:00:12]}
Rxg4+ {[%emt 0:00:04]} 54. Kf3 {[%emt 0:00:01]} Rf4+ {[%emt 0:00:11]} 55. Nxf4
{[%emt 0:00:02]} Bxf4 {[%emt 0:00:37]} 56. Nh6+ {[%emt 0:00:30]} Kf8 {[%emt 0:
00:06]} 57. Rxb5 {[%emt 0:00:03]} Kg7 {[%emt 0:00:03]} 58. Nf5+ {[%emt 0:00:12]
} Kf6 {[%emt 0:00:02]} 59. Nd4 {[%emt 0:00:14]} Be5 {[%emt 0:00:17]} 60. Nc6 {
[%emt 0:00:12]} Ra3+ {[%emt 0:00:12]} 61. Kg4 {[%emt 0:00:13]} Ra4+ {[%emt 0:
00:16]} 62. Rb4 {[%emt 0:00:01]} Ra1 {[%emt 0:00:07]} 63. Rb5 {[%emt 0:00:05]}
Rg1+ {[%emt 0:00:04]} 64. Kf3 {[%emt 0:00:02]} g4+ {[%emt 0:00:05]} 65. Ke2 {
[%emt 0:00:16]} Kf5 {[%emt 0:00:06]} 66. Rb4 {[%emt 0:00:09]} Ra1 {[%emt 0:00:
07]} 67. Ne7+ {[%emt 0:00:11]} Kg5 {[%emt 0:00:06]} 68. Nc6 {[%emt 0:00:10]}
Bf4 {[%emt 0:00:14]} 69. Nd4 {[%emt 0:00:08]} Ra2+ {[%emt 0:00:08]} 70. Kf1 {
[%emt 0:00:06]} Be5 {[%emt 0:00:18]} 71. Nc6 {[%emt 0:00:29]} Rd2 {[%emt 0:00:
12]} 72. Rb5 {[%emt 0:00:16]} Kf4 {[%emt 0:00:36]} 73. Rb4+ {[%emt 0:00:10]}
Kg5 {[%emt 0:00:07]} 74. Rb5 {[%emt 0:00:01]} Bf4 {[%emt 0:00:16]} 75. Ke1 {
[%emt 0:00:15]} Ra2 {[%emt 0:00:05]} 76. Nd4 {[%emt 0:00:16]} Be5 {[%emt 0:00:
24]} 77. Nc6 {[%emt 0:00:02]} Kf5 {[%emt 0:00:07]} 78. Ne7+ {[%emt 0:00:10]}
Ke4 {[%emt 0:00:07]} 79. Rb4+ {[%emt 0:00:19]} Kf3 {[%emt 0:00:33]} 80. Rb3+ {
[%emt 0:00:15]} Kg2 {[%emt 0:00:02]} 81. Nf5 {[%emt 0:00:18]} Rxf2 {[%emt 0:00:
14]} 82. Ne3+ {[%emt 0:00:07]} Kg1 {[%emt 0:00:04]} 83. Nxg4 {[%emt 0:00:05]}
Rf5 {[%emt 0:00:13]} 84. Ke2 {[%emt 0:00:10]} Bf4 {[%emt 0:00:19]} 85. Kf3 {
[%emt 0:00:17]} Be5+ {[%emt 0:00:10]} 86. Ke2 {[%emt 0:00:07]} Bf4 {[%emt 0:00:
02]} 87. Kf3 {[%emt 0:00:11]} Be5+ {[%emt 0:00:01]} 1/2-1/2

[Event "European Rapid Championship 2021"]
[Site "Katowice"]
[Date "2021.12.18"]
[Round "5.20"]
[White "Batashevs, Arsens"]
[Black "Kalogeris, Ioannis"]
[Result "0-1"]
[ECO "A06"]
[WhiteElo "2165"]
[BlackElo "2357"]
[Annotator "NA"]
[PlyCount "128"]
[EventDate "2021.12.18"]
[EventType "swiss"]
[EventCountry "POL"]
[SourceTitle "playchess.com"]
[Source "ChessBase"]
[SourceQuality "1"]
[TimeControl "900+10"]

1. Nf3 {[%emt 0:00:02]} d5 {[%emt 0:00:08]} 2. c4 {[%emt 0:00:01]} c6 {[%emt 0:
00:03]} 3. e3 {[%emt 0:01:41]} Nf6 {[%emt 0:00:08]} 4. b3 {[%emt 0:00:02]} Bg4
{[%emt 0:00:32]} 5. Bb2 {[%emt 0:00:04]} e6 {[%emt 0:00:05]} 6. Be2 {[%emt 0:
00:36]} Nbd7 {[%emt 0:00:04]} 7. d4 {[%emt 0:00:02]} Bb4+ {[%emt 0:00:40]} 8.
Nbd2 {[%emt 0:00:02]} Ne4 {[%emt 0:02:01]} 9. O-O {[%emt 0:00:02]} Nc3 {
[%emt 0:00:46]} 10. Bxc3 {[%emt 0:00:04]} Bxc3 {[%emt 0:00:02]} 11. Rc1 {
[%emt 0:00:13]} Bb4 {[%emt 0:00:38]} 12. e4 {[%emt 0:01:19]} Bxf3 {[%emt 0:02:
09]} 13. Bxf3 {[%emt 0:00:02]} Qg5 {[%emt 0:00:16]} 14. Rc2 {[%emt 0:00:01]}
O-O {[%emt 0:01:03]} 15. cxd5 {[%emt 0:03:36]} cxd5 {[%emt 0:00:13]} 16. exd5 {
[%emt 0:00:50]} exd5 {[%emt 0:00:02]} 17. Nb1 {[%emt 0:00:02]} Rac8 {[%emt 0:
00:19]} 18. Qd3 {[%emt 0:01:02]} Nb6 {[%emt 0:01:29]} 19. g3 {[%emt 0:00:52]}
Rxc2 {[%emt 0:01:17]} 20. Qxc2 {[%emt 0:00:01]} Rc8 {[%emt 0:00:02]} 21. Qd3 {
[%emt 0:00:31]} Rc1 {[%emt 0:00:58]} 22. Rxc1 {[%emt 0:00:34]} Qxc1+ {[%emt 0:
00:03]} 23. Kg2 {[%emt 0:00:02]} g6 {[%emt 0:01:01]} 24. a3 {[%emt 0:00:16]}
Bxa3 {[%emt 0:01:42]} 25. Nc3 {[%emt 0:00:01]} Bb2 {[%emt 0:00:54]} 26. Nxd5 {
[%emt 0:00:15]} Nxd5 {[%emt 0:00:09]} 27. Bxd5 {[%emt 0:00:01]} Qc3 {[%emt 0:
00:38]} 28. Qb5 {[%emt 0:00:03]} Qc7 {[%emt 0:00:10]} 29. Qd3 {[%emt 0:01:48]}
Qd7 {[%emt 0:00:23]} 30. Qe4 {[%emt 0:00:09]} b5 {[%emt 0:00:19]} 31. h4 {
[%emt 0:00:48]} a5 {[%emt 0:00:06]} 32. g4 {[%emt 0:00:11]} Kg7 {[%emt 0:00:23]
} 33. Qe5+ {[%emt 0:01:03]} f6 34. Qe4 Qd6 {[%emt 0:00:58]} 35. b4 {[%emt 0:03:
03]} axb4 {[%emt 0:00:38]} 36. Bb3 {[%emt 0:00:05]} Qd7 {[%emt 0:00:12]} 37. f3
{[%emt 0:00:57]} Bxd4 {[%emt 0:00:06]} 38. Qa8 {[%emt 0:00:05]} Qe7 {[%emt 0:
00:08]} 39. Qg8+ {[%emt 0:00:25]} Kh6 {[%emt 0:00:01]} 40. Kf1 {[%emt 0:00:35]}
Bc3 {[%emt 0:00:02]} 41. g5+ {[%emt 0:00:21]} fxg5 {[%emt 0:00:05]} 42. hxg5+ {
[%emt 0:00:01]} Kxg5 {[%emt 0:00:11]} 43. Qd5+ {[%emt 0:00:02]} Qe5 {[%emt 0:
00:09]} 44. Qd8+ {[%emt 0:00:13]} Qf6 {[%emt 0:00:02]} 45. Qd5+ {[%emt 0:00:07]
} Qf5 {[%emt 0:00:07]} 46. Qd8+ {[%emt 0:00:03]} Bf6 {[%emt 0:00:01]} 47. Qd2+
{[%emt 0:00:01]} Qf4 {[%emt 0:00:07]} 48. Qg2+ {[%emt 0:00:16]} Kh6 {[%emt 0:
00:09]} 49. Qh3+ {[%emt 0:00:10]} Bh4 {[%emt 0:00:04]} 50. Ke2 {[%emt 0:00:26]}
Qd4 {[%emt 0:00:05]} 51. Qe6 {[%emt 0:00:22]} Qf2+ {[%emt 0:00:06]} 52. Kd3 {
[%emt 0:00:02]} Qxf3+ {[%emt 0:00:03]} 53. Kd2 {[%emt 0:00:06]} Qc3+ {[%emt 0:
00:16]} 54. Kd1 {[%emt 0:00:04]} Bg5 {[%emt 0:00:08]} 55. Qd5 {[%emt 0:00:05]}
Qc1+ {[%emt 0:00:23]} 56. Ke2 {[%emt 0:00:01]} Qe3+ {[%emt 0:00:11]} 57. Kd1 {
[%emt 0:00:11]} Bf4 {[%emt 0:00:30]} 58. Qh1+ {[%emt 0:00:05]} Kg5 {[%emt 0:00:
05]} 59. Qg2+ {[%emt 0:00:06]} Kh4 {[%emt 0:00:14]} 60. Qd5 {[%emt 0:00:10]} h5
{[%emt 0:00:15]} 61. Qh1+ {[%emt 0:00:25]} Kg3 {[%emt 0:00:02]} 62. Qd5 {
[%emt 0:00:08]} Kf2 {[%emt 0:00:16]} 63. Kc2 {[%emt 0:00:36]} Qc1+ {[%emt 0:00:
02]} 64. Kd3 {[%emt 0:00:01]} Qd2+ {[%emt 0:00:04]} 0-1

[Event "European Rapid Championship 2021"]
[Site "Katowice"]
[Date "2021.12.18"]
[Round "5.21"]
[White "Cukrowski, Filip"]
[Black "Musial, Tomasz"]
[Result "1-0"]
[ECO "E19"]
[WhiteElo "2373"]
[BlackElo "1916"]
[Annotator "NA"]
[PlyCount "91"]
[EventDate "2021.12.18"]
[EventType "swiss"]
[EventCountry "POL"]
[SourceTitle "playchess.com"]
[Source "ChessBase"]
[SourceQuality "1"]
[TimeControl "900+10"]

1. Nf3 {[%emt 0:00:01]} Nf6 {[%emt 0:00:02]} 2. g3 {[%emt 0:00:01]} b6 {
[%emt 0:00:05]} 3. Bg2 {[%emt 0:00:01]} Bb7 {[%emt 0:00:01]} 4. d4 {[%emt 0:00:
02]} e6 {[%emt 0:00:01]} 5. c4 {[%emt 0:00:01]} Be7 {[%emt 0:00:02]} 6. O-O {
[%emt 0:00:05]} O-O {[%emt 0:00:03]} 7. Nc3 {[%emt 0:00:03]} Ne4 {[%emt 0:00:
01]} 8. Qc2 {[%emt 0:00:22]} Nxc3 {[%emt 0:00:04]} 9. Qxc3 {[%emt 0:00:03]} c5
{[%emt 0:00:06]} 10. Be3 {[%emt 0:01:06]} Bf6 {[%emt 0:00:38]} 11. Rfd1 {
[%emt 0:00:20]} Nc6 {[%emt 0:00:50]} 12. Qd2 {[%emt 0:00:28]} Nxd4 {[%emt 0:01:
05]} 13. Nxd4 {[%emt 0:00:33]} Bxg2 {[%emt 0:00:34]} 14. Kxg2 {[%emt 0:00:02]}
cxd4 {[%emt 0:00:03]} 15. Bxd4 {[%emt 0:00:02]} Bxd4 {[%emt 0:00:31]} 16. Qxd4
{[%emt 0:00:01]} Qc7 {[%emt 0:00:16]} 17. b3 {[%emt 0:00:50]} Rfd8 {[%emt 0:00:
34]} 18. e4 {[%emt 0:00:05]} d6 {[%emt 0:00:33]} 19. Rd3 {[%emt 0:00:19]} Rd7 {
[%emt 0:05:01]} 20. Rad1 {[%emt 0:00:02]} Rad8 {[%emt 0:00:01]} 21. Qe3 {
[%emt 0:00:17]} Qc5 {[%emt 0:00:57]} 22. Qd2 {[%emt 0:00:01]} a5 {[%emt 0:00:
23]} 23. f3 {[%emt 0:00:11]} Kf8 {[%emt 0:00:53]} 24. h4 {[%emt 0:00:28]} a4 {
[%emt 0:00:25]} 25. Rd4 {[%emt 0:00:58]} axb3 {[%emt 0:01:07]} 26. axb3 {
[%emt 0:00:01]} Qa3 {[%emt 0:01:13]} 27. Qc3 {[%emt 0:00:07]} Rc8 {[%emt 0:00:
44]} 28. Ra1 {[%emt 0:00:58]} Qc5 {[%emt 0:00:02]} 29. Qd3 {[%emt 0:00:01]} Rb8
{[%emt 0:00:53]} 30. Rd1 {[%emt 0:01:00]} Ke7 {[%emt 0:00:53]} 31. Qc3 {
[%emt 0:00:57]} Ra8 {[%emt 0:01:11]} 32. b4 {[%emt 0:00:18]} Ra2+ {[%emt 0:00:
05]} 33. Kh3 {[%emt 0:00:44]} Qh5 {[%emt 0:01:04]} 34. c5 {[%emt 0:00:02]} bxc5
{[%emt 0:00:01]} 35. bxc5 {[%emt 0:00:01]} d5 {[%emt 0:00:22]} 36. c6 {[%emt 0:
00:07]} Rc7 {[%emt 0:00:13]} 37. Qb4+ {[%emt 0:04:46]} Kf6 {[%emt 0:00:01]} 38.
e5+ {[%emt 0:00:01]} Qxe5 {[%emt 0:00:13]} 39. Rf4+ {[%emt 0:00:05]} Kg6 {
[%emt 0:00:01]} 40. Qb1+ {[%emt 0:00:08]} f5 {[%emt 0:00:14]} 41. Qxa2 {
[%emt 0:00:16]} Rxc6 {[%emt 0:00:02]} 42. Qd2 {[%emt 0:00:46]} Qc7 {[%emt 0:00:
11]} 43. g4 {[%emt 0:01:14]} Rc2 {[%emt 0:00:02]} 44. gxf5+ {[%emt 0:00:01]}
Kh5 {[%emt 0:00:01]} 45. Qe3 {[%emt 0:00:58]} d4 {[%emt 0:00:01]} 46. Qe4 {
[%emt 0:00:52]} 1-0

[Event "European Rapid Championship 2021"]
[Site "Katowice"]
[Date "2021.12.18"]
[Round "5.21"]
[White "Grabarczyk, Miroslaw"]
[Black "Nytra, Ondrej"]
[Result "1/2-1/2"]
[ECO "D30"]
[WhiteElo "2373"]
[BlackElo "1798"]
[Annotator "NA"]
[PlyCount "98"]
[EventDate "2021.12.18"]
[EventType "swiss"]
[EventCountry "POL"]
[SourceTitle "playchess.com"]
[Source "ChessBase"]
[SourceQuality "1"]
[TimeControl "900+10"]

1. d4 {[%emt 0:00:02]} d5 {[%emt 0:00:01]} 2. c4 {[%emt 0:00:02]} e6 {[%emt 0:
00:02]} 3. Nf3 {[%emt 0:00:02]} c6 {[%emt 0:00:01]} 4. Qc2 {[%emt 0:00:09]} Nf6
{[%emt 0:00:04]} 5. g3 {[%emt 0:00:10]} dxc4 {[%emt 0:00:02]} 6. Qxc4 {[%emt 0:
00:02]} b5 {[%emt 0:00:14]} 7. Qc2 {[%emt 0:00:03]} Bb7 {[%emt 0:00:18]} 8. Bg2
{[%emt 0:00:03]} Nbd7 {[%emt 0:00:31]} 9. Nfd2 {[%emt 0:00:41]} Qb6 {[%emt 0:
00:19]} 10. Nb3 {[%emt 0:00:02]} c5 {[%emt 0:01:32]} 11. dxc5 {[%emt 0:00:53]}
Nxc5 {[%emt 0:01:26]} 12. Bxb7 {[%emt 0:00:38]} Qxb7 {[%emt 0:00:37]} 13. O-O {
[%emt 0:00:03]} Rc8 {[%emt 0:00:01]} 14. Nxc5 {[%emt 0:00:57]} Bxc5 {[%emt 0:
00:05]} 15. Qb3 {[%emt 0:00:57]} h5 {[%emt 0:02:36]} 16. Qf3 {[%emt 0:00:34]}
Qxf3 {[%emt 0:00:36]} 17. exf3 {[%emt 0:00:02]} Bd4 {[%emt 0:00:04]} 18. a4 {
[%emt 0:01:26]} b4 {[%emt 0:01:11]} 19. Nd2 {[%emt 0:00:02]} Nd5 {[%emt 0:01:
29]} 20. Nb3 {[%emt 0:04:05]} Bf6 {[%emt 0:00:02]} 21. Rb1 {[%emt 0:00:06]} O-O
{[%emt 0:02:14]} 22. Bd2 {[%emt 0:00:04]} Rc2 {[%emt 0:00:04]} 23. Rfc1 {
[%emt 0:00:03]} Rxb2 {[%emt 0:00:06]} 24. Rxb2 {[%emt 0:00:09]} Bxb2 {[%emt 0:
00:01]} 25. Rc4 {[%emt 0:01:03]} Rb8 {[%emt 0:00:55]} 26. Be3 {[%emt 0:00:17]}
a5 {[%emt 0:02:45]} 27. Rc5 {[%emt 0:01:02]} Nxe3 {[%emt 0:00:44]} 28. fxe3 {
[%emt 0:00:03]} Rd8 {[%emt 0:00:02]} 29. Nxa5 {[%emt 0:01:28]} Rd3 {[%emt 0:00:
37]} 30. Rb5 {[%emt 0:01:07]} Rxe3 {[%emt 0:00:57]} 31. Rxb4 {[%emt 0:00:15]}
Bc3 {[%emt 0:00:03]} 32. Rb8+ {[%emt 0:00:18]} Kh7 {[%emt 0:00:01]} 33. Nc6 {
[%emt 0:00:13]} Re1+ {[%emt 0:00:39]} 34. Kf2 {[%emt 0:00:05]} Ra1 {[%emt 0:00:
01]} 35. Rb5 {[%emt 0:00:42]} Rxa4 {[%emt 0:00:19]} 36. Rxh5+ {[%emt 0:00:12]}
Kg6 {[%emt 0:00:02]} 37. Rc5 {[%emt 0:00:12]} Ra2+ {[%emt 0:00:06]} 38. Kg1 {
[%emt 0:00:10]} Bf6 {[%emt 0:00:25]} 39. Rc4 {[%emt 0:00:12]} Kh5 {[%emt 0:00:
11]} 40. h4 {[%emt 0:00:26]} g5 {[%emt 0:00:13]} 41. hxg5 {[%emt 0:00:11]} Kxg5
{[%emt 0:00:03]} 42. Rc5+ {[%emt 0:00:21]} Kg6 {[%emt 0:00:02]} 43. Rc4 {
[%emt 0:00:01]} Rd2 {[%emt 0:00:02]} 44. Kf1 {[%emt 0:00:12]} Kf5 {[%emt 0:00:
31]} 45. Rf4+ {[%emt 0:00:09]} Kg6 {[%emt 0:00:10]} 46. Rg4+ {[%emt 0:00:15]}
Kh5 {[%emt 0:00:05]} 47. Rf4 {[%emt 0:00:09]} Kg6 {[%emt 0:00:14]} 48. Rg4+ {
[%emt 0:00:06]} Kh6 {[%emt 0:00:14]} 49. Rf4 {[%emt 0:00:11]} Kg6 1/2-1/2

[Event "European Rapid Championship 2021"]
[Site "Katowice"]
[Date "2021.12.18"]
[Round "5.22"]
[White "Andrejczuk, Beata"]
[Black "Flasinski, Michal"]
[Result "0-1"]
[ECO "B10"]
[WhiteElo "1925"]
[BlackElo "2195"]
[Annotator "NA"]
[PlyCount "80"]
[EventDate "2021.12.18"]
[EventType "swiss"]
[EventCountry "POL"]
[SourceTitle "playchess.com"]
[Source "ChessBase"]
[SourceQuality "1"]
[TimeControl "900+10"]

1. e4 {[%emt 0:00:10]} c6 {[%emt 0:00:10]} 2. Nc3 {[%emt 0:00:10]} d5 {[%emt 0:
00:10]} 3. f4 {[%emt 0:00:10]} dxe4 {[%emt 0:00:10]} 4. Nxe4 {[%emt 0:00:10]}
Nd7 {[%emt 0:00:10]} 5. Nf3 {[%emt 0:00:10]} Ngf6 {[%emt 0:00:10]} 6. Nf2 {
[%emt 0:00:10]} e6 {[%emt 0:00:10]} 7. d4 {[%emt 0:00:10]} c5 {[%emt 0:00:10]}
8. c3 {[%emt 0:00:10]} b6 {[%emt 0:00:10]} 9. Bd3 {[%emt 0:00:10]} Bb7 {
[%emt 0:00:10]} 10. O-O {[%emt 0:00:10]} cxd4 {[%emt 0:00:10]} 11. Nxd4 {
[%emt 0:00:10]} Be7 {[%emt 0:00:21]} 12. Re1 {[%emt 0:00:43]} O-O {[%emt 0:00:
07]} 13. Ng4 {[%emt 0:00:53]} Nc5 {[%emt 0:00:46]} 14. Bc2 {[%emt 0:01:02]} Qd5
{[%emt 0:00:50]} 15. Qe2 {[%emt 0:00:48]} Rfe8 {[%emt 0:02:34]} 16. b4 {
[%emt 0:01:47]} Nce4 {[%emt 0:00:24]} 17. Bb2 {[%emt 0:00:50]} Rac8 {[%emt 0:
01:35]} 18. Nxf6+ {[%emt 0:00:52]} Nxf6 {[%emt 0:00:05]} 19. Bb3 {[%emt 0:00:
08]} Qh5 {[%emt 0:01:16]} 20. Qxh5 {[%emt 0:01:14]} Nxh5 {[%emt 0:00:02]} 21.
Nxe6 {[%emt 0:00:25]} fxe6 {[%emt 0:01:25]} 22. Bxe6+ {[%emt 0:00:16]} Kf8 {
[%emt 0:00:01]} 23. Bxc8 {[%emt 0:00:04]} Rxc8 {[%emt 0:00:03]} 24. Re5 {
[%emt 0:00:18]} Nf6 {[%emt 0:00:17]} 25. Rd1 {[%emt 0:00:39]} Rc4 {[%emt 0:00:
32]} 26. g3 {[%emt 0:01:30]} Bf3 {[%emt 0:02:11]} 27. Rd3 {[%emt 0:00:46]} Be4
{[%emt 0:00:32]} 28. Re3 {[%emt 0:02:48]} Bd6 {[%emt 0:00:51]} 29. Re6 {
[%emt 0:00:06]} Bc7 {[%emt 0:00:09]} 30. b5 {[%emt 0:00:18]} Kf7 {[%emt 0:00:
11]} 31. f5 {[%emt 0:00:03]} Bxf5 {[%emt 0:00:20]} 32. Re7+ {[%emt 0:00:04]}
Kg6 {[%emt 0:00:01]} 33. Re1 {[%emt 0:01:11]} Bd6 {[%emt 0:01:37]} 34. Rxa7 {
[%emt 0:00:08]} Ne4 {[%emt 0:00:12]} 35. Ba3 {[%emt 0:00:26]} Be5 {[%emt 0:00:
40]} 36. Bb4 {[%emt 0:00:26]} Bf6 {[%emt 0:00:04]} 37. Rb7 {[%emt 0:00:06]}
Nxc3 {[%emt 0:00:03]} 38. Bxc3 {[%emt 0:00:10]} Bxc3 {[%emt 0:00:03]} 39. Rf1 {
[%emt 0:00:11]} Bd4+ {[%emt 0:00:04]} 40. Kg2 {[%emt 0:00:01]} Be4+ {[%emt 0:
00:01]} 0-1